[Event "Live Chess"]
[Site "Chess.com"]
[Date "2023.05.21"]
[Round "-"]
[White "seabuck"]
[Black "Doge_Dandolo"]
[Result "1-0"]
[WhiteElo "1888"]
[BlackElo "1926"]
[TimeControl "300"]
[EndTime "21:36:52 PDT"]
[Termination "seabuck won by resignation"]

1. d4 {[%clk 0:04:58]} 1... d5 {[%clk 0:04:58.7]} 2. c4 {[%clk 0:04:56.9]} 2...
c6 {[%clk 0:04:57.7]} 3. Nc3 {[%clk 0:04:55.4]} 3... Nf6 {[%clk 0:04:56.5]} 4.
e3 {[%clk 0:04:54.2]} 4... a6 {[%clk 0:04:55.5]} 5. Nf3 {[%clk 0:04:52.4]} 5...
Bf5 {[%clk 0:04:46.5]} 6. Qb3 {[%clk 0:04:48.7]} 6... Ra7 {[%clk 0:04:39.4]} 7.
cxd5 {[%clk 0:04:40.1]} 7... Nxd5 {[%clk 0:04:35.5]} 8. Nxd5 {[%clk 0:04:32.1]}
8... Qxd5 {[%clk 0:04:32.9]} 9. Bc4 {[%clk 0:04:25.5]} 9... Qd6 {[%clk 0:04:23]}
10. Bxf7+ {[%clk 0:04:21]} 10... Kd8 {[%clk 0:04:21.7]} 11. Bd2 {[%clk
0:04:11.3]} 11... Nd7 {[%clk 0:04:15.3]} 12. O-O {[%clk 0:03:50.5]} 12... e6
{[%clk 0:04:09.3]} 13. Ne5 {[%clk 0:03:35.1]} 13... Nxe5 {[%clk 0:04:05.6]} 14.
dxe5 {[%clk 0:03:33.2]} 14... Qe7 {[%clk 0:04:04.3]} 15. Qb6+ {[%clk 0:03:20.9]}
15... Kc8 {[%clk 0:04:02.4]} 16. Qxa7 {[%clk 0:03:19.6]} 16... Qxf7 {[%clk
0:03:59.7]} 17. Qa8+ {[%clk 0:03:16.2]} 17... Kc7 {[%clk 0:03:58.4]} 18. Ba5+
{[%clk 0:03:12.4]} 1-0

[Event "Live Chess"]
[Site "Chess.com"]
[Date "2023.05.21"]
[Round "-"]
[White "Bakunian2022"]
[Black "Singapourfeuj"]
[Result "0-1"]
[WhiteElo "761"]
[BlackElo "2181"]
[TimeControl "300"]
[EndTime "21:37:19 PDT"]
[Termination "Singapourfeuj won by resignation"]

1. e4 {[%clk 0:04:51.8]} 1... c5 {[%clk 0:04:58.5]} 2. Nf3 {[%clk 0:04:50.8]}
2... d6 {[%clk 0:04:57.3]} 3. d4 {[%clk 0:04:47.9]} 3... cxd4 {[%clk 0:04:56.2]}
4. Nxd4 {[%clk 0:04:47.3]} 4... Nf6 {[%clk 0:04:54.8]} 5. Nc3 {[%clk 0:04:45.9]}
5... a6 {[%clk 0:04:52.5]} 6. Bg5 {[%clk 0:04:45.4]} 6... Nbd7 {[%clk
0:04:50.5]} 7. Be2 {[%clk 0:04:43.4]} 7... Qc7 {[%clk 0:04:49.2]} 8. O-O {[%clk
0:04:41.5]} 8... h6 {[%clk 0:04:46.6]} 9. Bxf6 {[%clk 0:04:36.8]} 9... Nxf6
{[%clk 0:04:45.4]} 10. f4 {[%clk 0:04:30.4]} 10... e6 {[%clk 0:04:43.1]} 11. Bg4
{[%clk 0:04:25.1]} 11... Qb6 {[%clk 0:04:32.8]} 12. Kh1 {[%clk 0:04:14.7]} 12...
Nxg4 {[%clk 0:04:31]} 13. Qxg4 {[%clk 0:04:09.2]} 13... Qxd4 {[%clk 0:04:29.7]}
14. Rad1 {[%clk 0:03:53.8]} 14... Qb6 {[%clk 0:04:28.1]} 15. b3 {[%clk
0:03:46.3]} 15... Bd7 {[%clk 0:04:19.4]} 16. Rd3 {[%clk 0:03:37.9]} 16... Rc8
{[%clk 0:04:14.7]} 17. Ne2 {[%clk 0:03:33.6]} 17... Rxc2 {[%clk 0:04:05.9]} 18.
Rfd1 {[%clk 0:03:24.4]} 18... h5 {[%clk 0:04:03.5]} 19. Qf3 {[%clk 0:03:17.8]}
19... Be7 {[%clk 0:04:00.4]} 20. e5 {[%clk 0:03:16.5]} 20... d5 {[%clk
0:03:58.2]} 21. f5 {[%clk 0:03:05.2]} 21... exf5 {[%clk 0:03:49.4]} 22. Nd4
{[%clk 0:03:01.7]} 22... g6 {[%clk 0:03:45.6]} 23. Nxc2 {[%clk 0:03:00.1]} 23...
Be6 {[%clk 0:03:41.1]} 24. Nd4 {[%clk 0:02:54]} 24... h4 {[%clk 0:03:36.4]} 25.
h3 {[%clk 0:02:40.4]} 25... O-O {[%clk 0:03:33.1]} 26. Nxe6 {[%clk 0:02:22.1]}
26... fxe6 {[%clk 0:03:31]} 27. g4 {[%clk 0:02:18.2]} 27... Qc7 {[%clk
0:03:18.9]} 28. gxf5 {[%clk 0:01:58]} 28... Rxf5 {[%clk 0:03:15.5]} 29. Qe2
{[%clk 0:01:44.3]} 29... Qxe5 {[%clk 0:03:10.8]} 30. Re3 {[%clk 0:01:35.2]}
30... Qf4 {[%clk 0:02:51.3]} 31. Rxe6 {[%clk 0:01:22.6]} 31... Bf6 {[%clk
0:02:46.8]} 32. Rg1 {[%clk 0:01:09.2]} 32... Kg7 {[%clk 0:02:41.3]} 33. Rb6
{[%clk 0:00:52.1]} 33... Qe4+ {[%clk 0:02:26]} 34. Qxe4 {[%clk 0:00:47.8]} 34...
dxe4 {[%clk 0:02:25.3]} 35. Rxb7+ {[%clk 0:00:46.2]} 35... Kh6 {[%clk
0:02:24.2]} 36. Rb4 {[%clk 0:00:40.9]} 36... e3 {[%clk 0:02:20.6]} 37. Rxh4+
{[%clk 0:00:38.4]} 37... Bxh4 {[%clk 0:02:18.5]} 38. Rg2 {[%clk 0:00:28.5]}
38... Rf2 {[%clk 0:02:16.5]} 39. Kg1 {[%clk 0:00:20.5]} 39... Rxg2+ {[%clk
0:02:13.4]} 40. Kxg2 {[%clk 0:00:18.9]} 40... e2 {[%clk 0:02:12.7]} 0-1

[Event "Live Chess"]
[Site "Chess.com"]
[Date "2023.05.21"]
[Round "-"]
[White "KeithArkell"]
[Black "chessfiction"]
[Result "1-0"]
[WhiteElo "2560"]
[BlackElo "2361"]
[TimeControl "300"]
[EndTime "21:38:39 PDT"]
[Termination "KeithArkell won by resignation"]

1. d4 {[%clk 0:04:56.8]} 1... Nf6 {[%clk 0:04:58.3]} 2. Nf3 {[%clk 0:04:55.3]}
2... g6 {[%clk 0:04:57.9]} 3. c4 {[%clk 0:04:54.3]} 3... Bg7 {[%clk 0:04:57.3]}
4. Nc3 {[%clk 0:04:53.6]} 4... O-O {[%clk 0:04:56.8]} 5. g3 {[%clk 0:04:52.5]}
5... d6 {[%clk 0:04:55.7]} 6. Bg2 {[%clk 0:04:51.9]} 6... c6 {[%clk 0:04:54.7]}
7. O-O {[%clk 0:04:51]} 7... Qa5 {[%clk 0:04:51.3]} 8. e4 {[%clk 0:04:46.1]}
8... Qh5 {[%clk 0:04:49.1]} 9. Ng5 {[%clk 0:04:45.2]} 9... Qxd1 {[%clk
0:04:46.2]} 10. Rxd1 {[%clk 0:04:45.1]} 10... h6 {[%clk 0:04:45]} 11. Nf3 {[%clk
0:04:42.9]} 11... Bg4 {[%clk 0:04:44.6]} 12. h3 {[%clk 0:04:40.9]} 12... Bxf3
{[%clk 0:04:44]} 13. Bxf3 {[%clk 0:04:40.2]} 13... Nbd7 {[%clk 0:04:41.6]} 14.
Be2 {[%clk 0:04:30.4]} 14... a6 {[%clk 0:04:37.7]} 15. Be3 {[%clk 0:04:22.6]}
15... b5 {[%clk 0:04:33]} 16. b4 {[%clk 0:04:19]} 16... bxc4 {[%clk 0:04:26.8]}
17. Bxc4 {[%clk 0:04:18.2]} 17... d5 {[%clk 0:04:26.1]} 18. exd5 {[%clk
0:04:16.8]} 18... Nb6 {[%clk 0:04:25.5]} 19. Bb3 {[%clk 0:04:14.6]} 19... Nfxd5
{[%clk 0:04:23.5]} 20. Nxd5 {[%clk 0:04:13.1]} 20... cxd5 {[%clk 0:04:23.1]} 21.
Rdc1 {[%clk 0:04:11.3]} 21... Rfc8 {[%clk 0:04:21.8]} 22. Rc5 {[%clk 0:04:10.2]}
22... e5 {[%clk 0:04:14.6]} 23. dxe5 {[%clk 0:03:57.2]} 23... Bxe5 {[%clk
0:04:14.5]} 24. Rd1 {[%clk 0:03:55.9]} 24... Nc4 {[%clk 0:03:52.8]} 25. Bxc4
{[%clk 0:03:43]} 25... Rxc5 {[%clk 0:03:48.4]} 26. Bxd5 {[%clk 0:03:16.3]} 26...
Rxd5 {[%clk 0:03:40.9]} 27. Rxd5 {[%clk 0:03:12.6]} 27... Bc3 {[%clk 0:03:38.5]}
28. a3 {[%clk 0:03:10.1]} 28... g5 {[%clk 0:03:27.6]} 29. Ra5 {[%clk 0:03:07.6]}
29... Kf8 {[%clk 0:03:14.8]} 30. g4 {[%clk 0:03:06.9]} 30... Ke7 {[%clk
0:03:13.4]} 31. Kg2 {[%clk 0:03:01.7]} 31... Kd6 {[%clk 0:03:09.5]} 32. Kf3
{[%clk 0:02:59.3]} 32... Kc7 {[%clk 0:03:07.6]} 33. Rc5+ {[%clk 0:02:58]} 1-0

[Event "Live Chess"]
[Site "Chess.com"]
[Date "2023.05.21"]
[Round "-"]
[White "Pablo_dmp"]
[Black "mirandaasilva"]
[Result "1-0"]
[WhiteElo "1847"]
[BlackElo "1679"]
[TimeControl "300"]
[EndTime "21:40:54 PDT"]
[Termination "Pablo_dmp won on time"]

1. e4 {[%clk 0:04:57]} 1... c5 {[%clk 0:04:58]} 2. a3 {[%clk 0:04:54.5]} 2... d6
{[%clk 0:04:56.6]} 3. Nf3 {[%clk 0:04:51.2]} 3... g6 {[%clk 0:04:52.5]} 4. Bc4
{[%clk 0:04:47.8]} 4... Nf6 {[%clk 0:04:48.5]} 5. Nc3 {[%clk 0:04:39.5]} 5...
Bg7 {[%clk 0:04:42.6]} 6. O-O {[%clk 0:04:35]} 6... O-O {[%clk 0:04:39]} 7. d3
{[%clk 0:04:16.8]} 7... a6 {[%clk 0:04:38]} 8. Bg5 {[%clk 0:04:10.2]} 8... h6
{[%clk 0:04:26]} 9. Bh4 {[%clk 0:04:05.7]} 9... b5 {[%clk 0:04:09.6]} 10. Bb3
{[%clk 0:04:01]} 10... Bb7 {[%clk 0:03:50]} 11. Qe2 {[%clk 0:03:56.4]} 11... Nc6
{[%clk 0:03:44.3]} 12. Rad1 {[%clk 0:03:47.4]} 12... Nh5 {[%clk 0:03:34.5]} 13.
Qd2 {[%clk 0:03:39.4]} 13... Qd7 {[%clk 0:03:27.1]} 14. Nd5 {[%clk 0:03:34.7]}
14... Qg4 {[%clk 0:02:41.7]} 15. Bg3 {[%clk 0:03:26.9]} 15... Nxg3 {[%clk
0:02:01]} 16. fxg3 {[%clk 0:03:20.9]} 16... Rae8 {[%clk 0:01:49.9]} 17. Ne3
{[%clk 0:03:04.6]} 17... Qd7 {[%clk 0:01:45.1]} 18. c3 {[%clk 0:03:01.3]} 18...
e6 {[%clk 0:01:37.4]} 19. Bc2 {[%clk 0:02:46.6]} 19... Re7 {[%clk 0:01:33.8]}
20. Rfe1 {[%clk 0:02:42.5]} 20... f5 {[%clk 0:01:31.7]} 21. exf5 {[%clk
0:02:40.8]} 21... exf5 {[%clk 0:01:29.4]} 22. Nd5 {[%clk 0:02:36.7]} 22... Rxe1+
{[%clk 0:01:22.6]} 23. Rxe1 {[%clk 0:02:36.6]} 23... Re8 {[%clk 0:01:16.1]} 24.
Rxe8+ {[%clk 0:02:23.1]} 24... Qxe8 {[%clk 0:01:16]} 25. Bb3 {[%clk 0:02:12.7]}
25... Kh7 {[%clk 0:01:15.3]} 26. h4 {[%clk 0:02:04.8]} 26... Ne5 {[%clk
0:01:09.6]} 27. Qf4 {[%clk 0:01:53.7]} 27... c4 {[%clk 0:01:04.2]} 28. dxc4
{[%clk 0:01:38.8]} 28... bxc4 {[%clk 0:00:45.6]} 29. Bxc4 {[%clk 0:01:38.7]}
29... Nxc4 {[%clk 0:00:42.3]} 30. Qxc4 {[%clk 0:01:37.8]} 30... Bxd5 {[%clk
0:00:15.5]} 31. Qxd5 {[%clk 0:01:34.4]} 31... Qe3+ {[%clk 0:00:15.4]} 32. Kh2
{[%clk 0:01:31.3]} 32... Qe2 {[%clk 0:00:08.3]} 33. Qxd6 {[%clk 0:01:22.6]}
33... Qxb2 {[%clk 0:00:06.7]} 34. Qxa6 {[%clk 0:01:12.6]} 34... Qb3 {[%clk
0:00:05.8]} 35. c4 {[%clk 0:01:08.6]} 35... f4 {[%clk 0:00:02.1]} 36. gxf4
{[%clk 0:01:05.6]} 1-0

[Event "Live Chess"]
[Site "Chess.com"]
[Date "2023.05.21"]
[Round "-"]
[White "raminguy"]
[Black "ExIsambard"]
[Result "1-0"]
[WhiteElo "1960"]
[BlackElo "1911"]
[TimeControl "300"]
[EndTime "21:41:04 PDT"]
[Termination "raminguy won by checkmate"]

1. d4 {[%clk 0:04:58.9]} 1... Nf6 {[%clk 0:04:58.9]} 2. Nc3 {[%clk 0:04:58.3]}
2... e5 {[%clk 0:04:57]} 3. dxe5 {[%clk 0:04:56.9]} 3... Ng4 {[%clk 0:04:56.1]}
4. Nf3 {[%clk 0:04:50.5]} 4... Nc6 {[%clk 0:04:54.4]} 5. Bg5 {[%clk 0:04:48.2]}
5... f6 {[%clk 0:04:51.2]} 6. exf6 {[%clk 0:04:46.7]} 6... gxf6 {[%clk
0:04:50.3]} 7. Bh4 {[%clk 0:04:44.7]} 7... Bc5 {[%clk 0:04:49.2]} 8. e3 {[%clk
0:04:43]} 8... d6 {[%clk 0:04:48.3]} 9. h3 {[%clk 0:04:41.2]} 9... Nge5 {[%clk
0:04:45.7]} 10. Nd5 {[%clk 0:04:37.7]} 10... O-O {[%clk 0:04:35.8]} 11. Nxe5
{[%clk 0:04:21.7]} 11... Nxe5 {[%clk 0:04:34.5]} 12. f4 {[%clk 0:04:13]} 12...
Ng6 {[%clk 0:04:30.7]} 13. Bf2 {[%clk 0:03:59.3]} 13... c6 {[%clk 0:04:26.8]}
14. Nc3 {[%clk 0:03:55.7]} 14... Re8 {[%clk 0:04:25.2]} 15. Qf3 {[%clk
0:03:49.4]} 15... Qb6 {[%clk 0:04:16.8]} 16. Nd1 {[%clk 0:03:26]} 16... Bf5
{[%clk 0:04:09.1]} 17. Bd3 {[%clk 0:03:19.9]} 17... Bxd3 {[%clk 0:03:48.4]} 18.
cxd3 {[%clk 0:03:19.8]} 18... Bb4+ {[%clk 0:03:44.7]} 19. Kf1 {[%clk 0:03:02.6]}
19... d5 {[%clk 0:03:12.9]} 20. Kg1 {[%clk 0:02:59.5]} 20... Bd2 {[%clk
0:02:56]} 21. Qg3 {[%clk 0:02:52.9]} 21... Kh8 {[%clk 0:02:52.7]} 22. f5 {[%clk
0:02:25.9]} 22... Ne7 {[%clk 0:02:48.3]} 23. e4 {[%clk 0:02:24.3]} 23... Qa5
{[%clk 0:02:41.4]} 24. Bd4 {[%clk 0:02:16.6]} 24... Rf8 {[%clk 0:02:32.6]} 25.
Qh4 {[%clk 0:02:13.8]} 25... Ng8 {[%clk 0:02:29.8]} 26. Nf2 {[%clk 0:01:55.1]}
26... c5 {[%clk 0:02:28.7]} 27. Bc3 {[%clk 0:01:36.7]} 27... Bxc3 {[%clk
0:02:26.4]} 28. bxc3 {[%clk 0:01:36.6]} 28... Qxc3 {[%clk 0:02:25.8]} 29. Kh2
{[%clk 0:01:35.7]} 29... Qe5+ {[%clk 0:02:20.9]} 30. g3 {[%clk 0:01:30.7]} 30...
dxe4 {[%clk 0:02:17.5]} 31. dxe4 {[%clk 0:01:28.9]} 31... Rad8 {[%clk
0:02:00.2]} 32. Rad1 {[%clk 0:01:23.5]} 32... Qb2 {[%clk 0:01:52.4]} 33. Kg2
{[%clk 0:01:20.2]} 33... Rd2 {[%clk 0:01:47.2]} 34. Rxd2 {[%clk 0:01:17.5]}
34... Qxd2 {[%clk 0:01:46.1]} 35. Rd1 {[%clk 0:01:17.1]} 35... Qxa2 {[%clk
0:01:40.9]} 36. Rd7 {[%clk 0:01:14.9]} 36... Rf7 {[%clk 0:01:36.9]} 37. Rd8
{[%clk 0:00:55.6]} 37... c4 {[%clk 0:01:18.9]} 38. Kf3 {[%clk 0:00:50.4]} 38...
c3 {[%clk 0:01:17.9]} 39. Ng4 {[%clk 0:00:47.5]} 39... Qa5 {[%clk 0:00:58.7]}
40. Rc8 {[%clk 0:00:37]} 40... c2 {[%clk 0:00:42.5]} 41. Nxf6 {[%clk 0:00:26.7]}
41... Qa3+ {[%clk 0:00:11.6]} 42. Kg2 {[%clk 0:00:08.5]} 42... Qf8 {[%clk
0:00:04.9]} 43. Rxf8 {[%clk 0:00:05.7]} 43... Rxf8 {[%clk 0:00:04]} 44. Qxh7#
{[%clk 0:00:04.9]} 1-0

[Event "Live Chess"]
[Site "Chess.com"]
[Date "2023.05.21"]
[Round "-"]
[White "Fazer180"]
[Black "smoggyrabbit"]
[Result "1-0"]
[WhiteElo "1746"]
[BlackElo "1742"]
[TimeControl "300"]
[EndTime "21:41:38 PDT"]
[Termination "Fazer180 won on time"]

1. e4 {[%clk 0:04:58.7]} 1... e6 {[%clk 0:04:59.1]} 2. d4 {[%clk 0:04:56.7]}
2... d5 {[%clk 0:04:58.3]} 3. Nc3 {[%clk 0:04:56.2]} 3... Nf6 {[%clk 0:04:56.6]}
4. e5 {[%clk 0:04:54.5]} 4... Nfd7 {[%clk 0:04:55.6]} 5. f4 {[%clk 0:04:54.2]}
5... c5 {[%clk 0:04:54.7]} 6. Nf3 {[%clk 0:04:53.8]} 6... Nc6 {[%clk 0:04:53.9]}
7. Be3 {[%clk 0:04:53.1]} 7... b6 {[%clk 0:04:47.1]} 8. Bb5 {[%clk 0:04:47.8]}
8... Bb7 {[%clk 0:04:44.6]} 9. O-O {[%clk 0:04:40.6]} 9... Be7 {[%clk
0:04:09.1]} 10. f5 {[%clk 0:04:30.8]} 10... cxd4 {[%clk 0:03:58.5]} 11. Bxc6
{[%clk 0:04:13]} 11... Bxc6 {[%clk 0:03:53.6]} 12. Bxd4 {[%clk 0:03:51.7]} 12...
Bc5 {[%clk 0:03:33.2]} 13. fxe6 {[%clk 0:03:34.8]} 13... fxe6 {[%clk 0:03:33.1]}
14. Kh1 {[%clk 0:03:26.2]} 14... O-O {[%clk 0:03:24.2]} 15. Qd2 {[%clk
0:03:09.8]} 15... Qc7 {[%clk 0:03:01.2]} 16. Ng5 {[%clk 0:02:55.9]} 16... Rxf1+
{[%clk 0:02:39]} 17. Rxf1 {[%clk 0:02:55.8]} 17... Bxd4 {[%clk 0:02:25.2]} 18.
Qxd4 {[%clk 0:02:49.3]} 18... Qxe5 {[%clk 0:02:18.8]} 19. Qxe5 {[%clk
0:02:38.4]} 19... Nxe5 {[%clk 0:02:18.7]} 20. Nxe6 {[%clk 0:02:37.6]} 20... Nc4
{[%clk 0:01:15.1]} 21. Nd4 {[%clk 0:02:35.9]} 21... Bb7 {[%clk 0:01:08.7]} 22.
b3 {[%clk 0:02:27.5]} 22... Nd2 {[%clk 0:00:57.2]} 23. Rf2 {[%clk 0:02:18.3]}
23... Re8 {[%clk 0:00:52.3]} 24. h3 {[%clk 0:02:08.6]} 24... Ne4 {[%clk
0:00:23.8]} 25. Nxe4 {[%clk 0:01:51.3]} 25... dxe4 {[%clk 0:00:23.7]} 26. Nb5
{[%clk 0:01:47.2]} 26... e3 {[%clk 0:00:20.7]} 27. Re2 {[%clk 0:01:45]} 27...
Ba6 {[%clk 0:00:19.6]} 28. c4 {[%clk 0:01:42.4]} 28... Bxb5 {[%clk 0:00:18.2]}
29. cxb5 {[%clk 0:01:41.6]} 29... Kf7 {[%clk 0:00:16.5]} 30. Kh2 {[%clk
0:01:40.6]} 30... Kf6 {[%clk 0:00:16]} 31. Kg3 {[%clk 0:01:40.2]} 31... Kf5
{[%clk 0:00:15.3]} 32. Kf3 {[%clk 0:01:39.4]} 32... Re5 {[%clk 0:00:12.9]} 33.
a4 {[%clk 0:01:36.7]} 33... g5 {[%clk 0:00:09.6]} 34. Rxe3 {[%clk 0:01:34.5]}
34... h5 {[%clk 0:00:08.8]} 35. Rxe5+ {[%clk 0:01:29.1]} 35... Kxe5 {[%clk
0:00:08.7]} 36. g3 {[%clk 0:01:19.9]} 36... Kf5 {[%clk 0:00:05.8]} 37. Ke3
{[%clk 0:01:15.8]} 37... g4 {[%clk 0:00:03.1]} 38. h4 {[%clk 0:01:12.6]} 38...
Ke5 {[%clk 0:00:02.4]} 39. b4 {[%clk 0:01:10.3]} 39... Kd5 {[%clk 0:00:01]} 40.
Kf4 {[%clk 0:01:08.5]} 40... Kc4 {[%clk 0:00:00.1]} 41. Kg5 {[%clk 0:01:07.6]}
1-0

[Event "Live Chess"]
[Site "Chess.com"]
[Date "2023.05.21"]
[Round "-"]
[White "KeithArkell"]
[Black "1PRK1"]
[Result "1-0"]
[WhiteElo "2560"]
[BlackElo "1380"]
[TimeControl "300"]
[EndTime "21:42:25 PDT"]
[Termination "KeithArkell won by resignation"]

1. d4 {[%clk 0:04:56.3]} 1... Nf6 {[%clk 0:04:58]} 2. Nf3 {[%clk 0:04:55.2]}
2... e6 {[%clk 0:04:56]} 3. c4 {[%clk 0:04:54.3]} 3... d5 {[%clk 0:04:54.2]} 4.
cxd5 {[%clk 0:04:53]} 4... exd5 {[%clk 0:04:49.8]} 5. Nc3 {[%clk 0:04:52.1]}
5... c6 {[%clk 0:04:46]} 6. Qc2 {[%clk 0:04:50.5]} 6... Be7 {[%clk 0:04:35.8]}
7. Bg5 {[%clk 0:04:49.1]} 7... O-O {[%clk 0:04:34.7]} 8. e3 {[%clk 0:04:48.5]}
8... Nbd7 {[%clk 0:04:32.1]} 9. Bd3 {[%clk 0:04:46.9]} 9... h6 {[%clk
0:04:26.9]} 10. Bh4 {[%clk 0:04:45.4]} 10... Re8 {[%clk 0:04:10.4]} 11. O-O
{[%clk 0:04:40.4]} 11... Nf8 {[%clk 0:04:08.2]} 12. h3 {[%clk 0:04:35.2]} 12...
Ne6 {[%clk 0:04:04.8]} 13. Bxf6 {[%clk 0:04:32.1]} 13... Bxf6 {[%clk 0:04:03.1]}
14. b4 {[%clk 0:04:31.2]} 14... b5 {[%clk 0:03:49.1]} 15. a4 {[%clk 0:04:28.6]}
15... bxa4 {[%clk 0:03:39.3]} 16. Nxa4 {[%clk 0:04:25.8]} 16... Bb7 {[%clk
0:03:31.3]} 17. Nc5 {[%clk 0:04:23.6]} 17... Nxc5 {[%clk 0:03:28.5]} 18. Qxc5
{[%clk 0:04:21.4]} 18... Be7 {[%clk 0:03:24.3]} 19. Qc3 {[%clk 0:04:20.2]} 19...
a5 {[%clk 0:03:18.3]} 20. bxa5 {[%clk 0:04:03]} 20... Rxa5 {[%clk 0:03:13.8]}
21. Qxa5 {[%clk 0:04:00.5]} 21... Qxa5 {[%clk 0:03:11.9]} 22. Rxa5 {[%clk
0:03:58.5]} 1-0

[Event "Live Chess"]
[Site "Chess.com"]
[Date "2023.05.21"]
[Round "-"]
[White "chessfiction"]
[Black "mirandaasilva"]
[Result "1-0"]
[WhiteElo "2361"]
[BlackElo "1679"]
[TimeControl "300"]
[EndTime "21:42:39 PDT"]
[Termination "chessfiction won by resignation"]

1. e4 {[%clk 0:04:57.6]} 1... e6 {[%clk 0:04:57.1]} 2. d4 {[%clk 0:04:56.8]}
2... d5 {[%clk 0:04:55.9]} 3. Nc3 {[%clk 0:04:55.9]} 3... dxe4 {[%clk
0:04:54.2]} 4. Nxe4 {[%clk 0:04:54.8]} 4... Bd7 {[%clk 0:04:53.7]} 5. Nf3 {[%clk
0:04:53.5]} 5... Nf6 {[%clk 0:04:52.8]} 6. Neg5 {[%clk 0:04:52.2]} 6... h6
{[%clk 0:04:50.7]} 7. Nxf7 {[%clk 0:04:51.5]} 7... Kxf7 {[%clk 0:04:49.5]} 8.
Ne5+ {[%clk 0:04:51.4]} 8... Kg8 {[%clk 0:04:47.8]} 9. Bd3 {[%clk 0:04:50.2]}
9... Be8 {[%clk 0:04:42.5]} 10. Be3 {[%clk 0:04:47.3]} 10... Nc6 {[%clk
0:04:40.7]} 11. f4 {[%clk 0:04:41.1]} 11... Nxd4 {[%clk 0:04:35.8]} 12. Bxd4
{[%clk 0:04:39]} 12... Qxd4 {[%clk 0:04:35.2]} 13. Bh7+ {[%clk 0:04:38.1]} 13...
Rxh7 {[%clk 0:04:30.1]} 14. Qxd4 {[%clk 0:04:38]} 14... Nd5 {[%clk 0:04:21.1]}
15. O-O-O {[%clk 0:04:32.9]} 15... c5 {[%clk 0:04:20.5]} 16. Qe4 {[%clk
0:04:28.2]} 16... Nf6 {[%clk 0:04:18.1]} 17. Qxb7 {[%clk 0:04:25.4]} 1-0

[Event "Live Chess"]
[Site "Chess.com"]
[Date "2023.05.21"]
[Round "-"]
[White "Long1968"]
[Black "Conradical12"]
[Result "0-1"]
[WhiteElo "1059"]
[BlackElo "1640"]
[TimeControl "300"]
[EndTime "21:42:42 PDT"]
[Termination "Conradical12 won on time"]

1. e4 {[%clk 0:04:48.7]} 1... e6 {[%clk 0:04:58.6]} 2. d4 {[%clk 0:04:46.5]}
2... d5 {[%clk 0:04:57.7]} 3. Nc3 {[%clk 0:04:43.4]} 3... c5 {[%clk 0:04:56.4]}
4. exd5 {[%clk 0:04:36.8]} 4... exd5 {[%clk 0:04:53.9]} 5. Bb5+ {[%clk
0:04:33.3]} 5... Bd7 {[%clk 0:04:50.8]} 6. Qe2+ {[%clk 0:04:30.5]} 6... Be7
{[%clk 0:04:48.4]} 7. Nf3 {[%clk 0:04:27.2]} 7... Nf6 {[%clk 0:04:45.5]} 8. dxc5
{[%clk 0:04:21.8]} 8... O-O {[%clk 0:04:43.5]} 9. O-O {[%clk 0:04:18.9]} 9...
Bxc5 {[%clk 0:04:42.1]} 10. Bg5 {[%clk 0:03:59.3]} 10... a6 {[%clk 0:04:39.5]}
11. Bxf6 {[%clk 0:03:42]} 11... Qxf6 {[%clk 0:04:22.9]} 12. Bxd7 {[%clk
0:03:02]} 12... Nxd7 {[%clk 0:04:19.7]} 13. Nxd5 {[%clk 0:02:56.3]} 13... Qxb2
{[%clk 0:04:10.8]} 14. Rab1 {[%clk 0:02:45.7]} 14... Qxa2 {[%clk 0:04:08.1]} 15.
Rxb7 {[%clk 0:02:41.6]} 15... Qxd5 {[%clk 0:04:05.8]} 16. Rfb1 {[%clk
0:02:30.6]} 16... Rfe8 {[%clk 0:04:01]} 17. Qd2 {[%clk 0:01:58.7]} 17... Qxd2
{[%clk 0:03:44.4]} 18. Nxd2 {[%clk 0:01:53.1]} 18... Rad8 {[%clk 0:03:38.5]} 19.
Nc4 {[%clk 0:01:33.7]} 19... Nf6 {[%clk 0:03:27.7]} 20. Rc7 {[%clk 0:01:06.3]}
20... Bd4 {[%clk 0:03:19.3]} 21. g3 {[%clk 0:00:12]} 21... Re2 {[%clk
0:03:00.8]} 0-1